Workbook

Sheet Setup
A1: Fixed Leap Cycle Finder
A2: by Dr. Irv Bromberg, University of Toronto, Canada
A3: http://individual.utoronto.ca/kalendis/leap/ | E3: Revised 2022.07.11, version 3.33(75)
A5: Remember: This is Excel, so you can enter valid expressions instead of constants.
B7: days | C7: months | H7: days per week
A8: Length of Short Year: | B8: 364 | C8: 12 | D8: =" "&IF(365.25-SYD>LYD-365.25,"leap","common") -> common | H8: 7
A9: Length of Long Year: | B9: 371 | C9: 12 | D9: =" "&IF(365.25-SYD>LYD-365.25,"common","leap") -> leap
F10: days per month
A11: Calendar Mean Year: | B11: minimum | C11: maximum | F11: 28 | K11: FALSE
A12: (Time or Fraction >365 days) | B12: =B14 -> 05:47:35.929 | C12: =C14 -> 05:49:46.962
A13: Decimal Fractions: | B13: =MinFract -> 0.2413880686 | C13: =MaxFract -> 0.2429046501 | E13: ="Report will be output to spreadsheet """&ABS(INT(TargetYear))&IF(TargetYear>0," AD",IF(TargetYear<0," BC",))&" "&IF(D9=" leap",INT(SYD)&"+"&INT(B9-B8),INT(LYD)&"–"&INT(B9-B8))&"""" -> Report will be output to spreadsheet "2022 AD 364+7"
A14: Suggestions: | B14: =MIN(C23:C26)-20/86400 -> 05:47:35.929 | C14: =MAX(C23:C26)+15/86400 -> 05:49:46.962
B16: divisible by | C16: maximum | J16: 1
A17: Years per Cycle: | B17: 1 | C17: 1000
L18: FALSE
A19: Target Year (-1000 to 4000): | B19: 2022 | L19: 86400
B20: =IF(TargetYear<-1000,"Too far in past (limit=-1000)",IF(TargetYear>4000,"Too far in future (limit=4000)","")) -> 
A21: Color codes for good matches to equinoctial or solstitial mean years ("Change" is number of seconds per century, absolute value <1 is reasonably stable):
A22: Mean Year | B22: Solar Longitude | C22: Time >365d | D22: Change | E22: Description | G22: Tighter matches highlighted in boldface:
A23: =MeanEqSolstYear(TargetYear,B23) -> 365.242369705404 | B23: 0 | C23: =MOD(A23,1) -> 05:49:00.743 | D23: =MeanEqSolstYearChange(TargetYear,B23) -> +0.15 | E23: Green = Northward Equinoctial | G23: Green = Northward Equinoctial
A24: =MeanEqSolstYear(TargetYear,B24) -> 365.241619550041 | B24: =B23+90 -> 90 | C24: =MOD(A24,1) -> 05:47:55.929 | D24: =MeanEqSolstYearChange(TargetYear,B24) -> –0.67 | E24: Red = North Solstitial | G24: Red = North Solstitial
A25: =MeanEqSolstYear(TargetYear,B25) -> 365.242005912995 | B25: =B24+90 -> 180 | C25: =MOD(A25,1) -> 05:48:29.311 | D25: =MeanEqSolstYearChange(TargetYear,B25) -> –2.74 | E25: Brown = Southward Equinoctial | G25: Brown = Southward Equinoctial
A26: =MeanEqSolstYear(TargetYear,B26) -> 365.242731038947 | B26: =B25+90 -> 270 | C26: =MOD(A26,1) -> 05:49:31.962 | D26: =MeanEqSolstYearChange(TargetYear,B26) -> –1.83 | E26: Blue = South Solstitial | G26: Blue = South Solstitial
A28: Mean Lunar Months: | B28: Days | C28: HH:MM | D28: Seconds | E28: Description
A29: Fixed Mean Month: | B29: =29+12/24+44/1440+(2+62/89)/86400 -> 29.53058677 | C29: =INT(MOD(B29,1)*1440)/1440 -> 12:44:00 | D29: =MOD(86400*MOD(B29,1),60) -> 2.697 | E29: expression in terms of days + hours + minutes + seconds
A30: Hebrew Molad interval: | B30: =29+12/24+44/1440+(10/3)/86400 -> 29.53059414 | C30: =INT(MOD(B30,1)*1440)/1440 -> 12:44:00 | D30: =MOD(86400*MOD(B30,1),60) -> 3.333 | E30: fixed lunar conjunction approximation used for the traditional Hebrew calendar
A31: Synodic Month: | B31: =SynodicMonth(TargetYear) -> 29.53058881 | C31: 12:44:00 | D31: 2.87 | E31: mean lunar conjunction interval (same ecliptic longitude as Sun)
A32: Saros Period: | B32: 233 synodic months, or about 242 draconic months, or about 239 anomalistic months (used for eclipse prediction)
A33: Sidereal Month: | B33: =siderealmonth(TargetYear) -> 27.32166151 | C33: 07:43:00 | D33: 11.55 | E33: mean interval for Moon to revolve with respect to distant stars
A34: Anomalistic Month: | B34: =Anomalisticmonth(TargetYear) -> 27.55455011 | C34: 13:18:00 | D34: 33.13 | E34: mean interval for Moon to return to its orbital perigee
A35: Draconic (nodical) Month: | B35: =DraconicMonth(TargetYear) -> 27.21222073 | C35: 05:05:00 | D35: 35.87 | E35: mean interval for Moon to return to its orbital ascending node
A36: Eclipse Year: | B36: =(Synodic*Draconic)/(Synodic-Draconic) -> 346.6200688 | C36: 14:52:00 | D36: 53.95 | E36: = (Synodic x Draconic) / (Synodic – Draconic)
E37: If 365.25 - DaysPerShortYear > DaysPerLongYear - 365.25 Then

Sheet Ratios
A1: Continued Fraction Approximations (mainly Lunar Months and their Ratios)
A3: Based on continued fraction convergents,
A4: where the coefficients a0, a1, a2, a3 …
A5: correspond to the list of "alpha" values.
A12: Syntax and how to use the ContinuedFraction( ) macro function:
A13: Select an area of cells that has 5 columns and enough rows for the desired number of convergent rows.
A14: Use Ctrl-Shift-Enter to input an expression like the following as a cell ARRAY formula:
A15: { =ContinuedFraction( TargetValue, FirstDesiredConvergentRow, LastDesiredConvergentRow ) }
A16: The optional convergent row parameters default to rows 2 through 12, although fewer rows usually suffice.
A17: You can simply change the first row number below the "Convergent" heading to start from the desired row number.
A18: If the exact fraction is reached before the last convergent row then the remaining rows are left empty.
A20: These columns are returned by the ContinuedFraction( ) function:
A21: alpha shows the improvement in the convergence --- a large value denotes that that convergent is much better than the previous.
A22: p is the numerator so far, and q is the denominator so far, and of course p/q is their ratio, which approaches the TargetValue.
A23: "ppt Error" = "parts per trillion" error = (10 ^ 12) * ABS( TargetValue - p/q ) / TargetValue.
A25: The cells in the "Fraction Error" column are individually calculated by the FractionError( ) function.
A26: "Fraction Error" = exact fractional difference between target and convergent ratios (where numerator and denominator are integers)
A29: ContinuedFraction( ) can also be called to return a fraction as a string instead of an array of convergents:
A31: ContinuedFraction( TargetValue As Double, Optional MinConvergent As Integer = 2, Optional MaxConvergent As Integer = 12, Optional ErrorLimit As Double = 0.01, Optional JustTheFraction As Boolean ) As String
A33: Uses the continued fraction method to find a series of progressively better fractional approximations (called "convergents") to the given
A34: TargetValue. The search terminates when the a convergent's parts-per-trillion error is less than the ErrorLimit or when it reaches the
A35: specified maximum convergent. The final mixed or proper fraction is returned as a text string. If it returns a mixed fraction that you don't
A36: want then pass the inverse of the TargetValue or pass the fractional result to ReduceFractStr( ) with the ImproperFraction flag = True.
A38: If the fractional result has an absurd number of digits then try specifying a lower MaxConvergent or a greater ErrorLimit.
A41: See examples below.
B43: Numerator: | D43: Synodic | E43: =Synodic -> 29.530588805437
B44: Denominator: | D44: Sidereal | E44: =Sidereal -> 27.321661506147
B45: Ratio: | D45: =D43&":"&D44 -> Synodic:Sidereal | E45: =Synodic/Sidereal -> 1.08084893734567
A47: Convergent | B47: alpha | C47: p | D47: q | E47: p/q | F47: ppt Error
A48: 4 | B48: =ContinuedFraction(E45,A48,A60) -> 2 | C48: 107 | D48: 99 | E48: 1.08080808080808 | F48: 37800414.27
A49: =A48+1 -> 5 | B49: 2 | C49: 254 | D49: 235 | E49: 1.08085106382979 | F49: 1967420.28
A50: =A49+1 -> 6 | B50: 8 | C50: 2139 | D50: 1979 | E50: 1.08084891359272 | F50: 21976.20
A51: 7 | B51: 10 | C51: 21644 | D51: 20025 | E51: 1.08084893882647 | F51: 1370.03
A52: 8 | B52: 1 | C52: 23783 | D52: 22004 | E52: 1.08084893655699 | F52: 729.69
A53: 9 | B53: 1 | C53: 45427 | D53: 42029 | E53: 1.08084893763830 | F53: 270.74
A54: 10 | B54: 1 | C54: 69210 | D54: 64033 | E54: 1.08084893726672 | F54: 73.05
A55: 11 | B55: 2 | C55: 183847 | D55: 170095 | E55: 1.08084893735854 | F55: 11.90
A56: 12 | B56: 2 | C56: 436904 | D56: 404223 | E56: 1.08084893734399 | F56: 1.56
A57: 13 | B57: 3 | C57: 1494559 | D57: 1382764 | E57: 1.080848937 | F57: 0.10
A58: 14 | B58: 4 | C58: 6415140 | D58: 5935279 | E58: 1.08084893734566 | F58: 0.01
A59: 15 | B59: 1 | C59: 7909699 | D59: 7318043 | E59: 1.08084893734568 | F59: 0.01
A60: 16
F61: exact, within floating point precision limit
B63: Numerator: | D63: Synodic | E63: =Synodic -> 29.530588805437
B64: Denominator: | D64: Draconic | E64: =Draconic -> 27.212220732676
B65: Ratio: | D65: =D63&":"&D64 -> Synodic:Draconic | E65: =Synodic/Draconic -> 1.08519584254207
A67: Convergent | B67: alpha | C67: p | D67: q | E67: p/q | F67: ppt Error
A68: 5 | B68: =ContinuedFraction(E65,A68,A79) -> 4 | C68: 242 | D68: 223 | E68: 1.08520179372197 | F68: 5483968.58
A69: =A68+1 -> 6 | B69: 3 | C69: 777 | D69: 716 | E69: 1.08519553072626 | F69: 287335.99
A70: =A69+1 -> 7 | B70: 5 | C70: 4127 | D70: 3803 | E70: 1.08519589797528 | F70: 51081.29
A71: 8 | B71: 1 | C71: 4904 | D71: 4519 | E71: 1.08519583978756 | F71: 2538.26
A72: 9 | B72: 16 | C72: 82591 | D72: 76107 | E72: 1.08519584269515 | F72: 141.06
A73: 10 | B73: 1 | C73: 87495 | D73: 80626 | E73: 1.08519584253219 | F73: 9.11
A74: 11 | B74: 14 | C74: 1307521 | D74: 1204871 | E74: 1.08519584254248 | F74: 0.37
A75: 12 | B75: 1 | C75: 1395016 | D75: 1285497 | E75: 1.08519584254183 | F75: 0.22
A76: 13 | B76: 1 | C76: 2702537 | D76: 2490368 | E76: 1.08519584254215 | F76: 0.07
A77: 14 | B77: 1 | C77: 4097553 | D77: 3775865 | E77: 1.085195843 | F77: 0.03
A78: 15 | B78: 1 | C78: 6800090 | D78: 6266233 | E78: 1.08519584254208 | F78: 0.01
A79: 16
F80: exact, within floating point precision limit
B82: Numerator: | D82: Synodic | E82: =Synodic -> 29.530588805437
B83: Denominator: | D83: Anomalistic | E83: =Anomalistic -> 27.554550106575
B84: Ratio: | D84: =D82&":"&D83 -> Synodic:Anomalistic | E84: =Synodic/Anomalistic -> 1.07171369850783
A86: Convergent | B86: alpha | C86: p | D86: q | E86: p/q | F86: ppt Error
A87: 2 | B87: =ContinuedFraction(E84,A87,A96) -> 1 | C87: 15 | D87: 14 | E87: 1.07142857142857 | F87: 266047807.04
A88: =A87+1 -> 3 | B88: 16 | C88: 254 | D88: 237 | E88: 1.07172995780591 | F88: 15171307.50
A89: =A88+1 -> 4 | B89: 1 | C89: 269 | D89: 251 | E89: 1.07171314741036 | F89: 514220.80
A90: 5 | B90: 27 | C90: 7517 | D90: 7014 | E90: 1.07171371542629 | F90: 15786.36
A91: 6 | B91: 1 | C91: 7786 | D91: 7265 | E91: 1.07171369580179 | F91: 2524.97
A92: 7 | B92: 6 | C92: 54233 | D92: 50604 | E92: 1.07171369852186 | F92: 13.08
A93: 8 | B93: 27 | C93: 1472077 | D93: 1373573 | E93: 1.07171369850747 | F93: 0.34
A94: 9 | B94: 1 | C94: 1526310 | D94: 1424177 | E94: 1.07171369850798 | F94: 0.14
A95: 10 | B95: 2 | C95: 4524697 | D95: 4221927 | E95: 1.07171369850781 | F95: 0.02
A96: 11 | B96: 2 | C96: 10575704 | D96: 9868031 | E96: 1.07171369850784 | F96: 0.00
F97: exact, within floating point precision limit
B99: Numerator: | D99: 30 | E99: =D99 -> 30
B100: Denominator: | D100: Synodic | E100: =Synodic -> 29.530588805437
B101: Ratio: | D101: =D99&":"&D100 -> 30:Synodic | E101: =E99/E100 -> 1.01589576143082
A103: Convergent | B103: alpha | C103: p | D103: q | E103: p/q | F103: ppt Error
A104: 3 | B104: =ContinuedFraction(E101,A104,A113) -> 10 | C104: 703 | D104: 692 | E104: 1.01589595375723 | F104: 189317.06
A105: =A104+1 -> 4 | B105: 10 | C105: 7094 | D105: 6983 | E105: 1.01589574681369 | F105: 14388.42
A106: =A105+1 -> 5 | B106: 1 | C106: 7797 | D106: 7675 | E106: 1.01589576547231 | F106: 3978.25
A107: 6 | B107: 3 | C107: 30485 | D107: 30008 | E107: 1.01589576113037 | F107: 295.76
A108: 7 | B108: 3 | C108: 99252 | D108: 97699 | E108: 1.01589576147146 | F108: 40.00
A109: 8 | B109: 2 | C109: 228989 | D109: 225406 | E109: 1.01589576142605 | F109: 4.70
A110: 9 | B110: 3 | C110: 786219 | D110: 773917 | E110: 1.01589576143178 | F110: 0.94
A111: 10 | B111: 1 | C111: 1015208 | D111: 999323 | E111: 1.01589576143049 | F111: 0.33
A112: 11 | B112: 2 | C112: 2816635 | D112: 2772563 | E112: 1.01589576143085 | F112: 0.03
A113: 12 | B113: 4 | C113: 12281748 | D113: 12089575 | E113: 1.01589576143082 | F113: 0.00
F114: exact, within floating point precision limit
B116: Numerator: | D116: 30 | E116: =D116 -> 30
B117: Denominator: | D117: Sidereal | E117: =Sidereal -> 27.321661506147
B118: Ratio: | D118: =D116&":"&D117 -> 30:Sidereal | E118: =E116/E117 -> 1.09802985419648
A120: Convergent | B120: alpha | C120: p | D120: q | E120: p/q | F120: ppt Error
A121: 4 | B121: =ContinuedFraction(E118,A121,A130) -> 40 | C121: 2285 | D121: 2081 | E121: 1.09802979336857 | F121: 55397.32
A122: =A121+1 -> 5 | B122: 3 | C122: 6911 | D122: 6294 | E122: 1.09802986971719 | F122: 14135.05
A123: =A122+1 -> 6 | B123: 1 | C123: 9196 | D123: 8375 | E123: 1.09802985074627 | F123: 3142.18
A124: 7 | B124: 3 | C124: 34499 | D124: 31419 | E124: 1.09802985454661 | F124: 318.87
A125: 8 | B125: 2 | C125: 78194 | D125: 71213 | E125: 1.09802985409967 | F125: 88.16
A126: 9 | B126: 1 | C126: 112693 | D126: 102632 | E126: 1.09802985423650 | F126: 36.44
A127: 10 | B127: 1 | C127: 190887 | D127: 173845 | E127: 1.09802985418045 | F127: 14.60
A128: 11 | B128: 1 | C128: 303580 | D128: 276477 | E128: 1.09802985420125 | F128: 4.35
A129: 12 | B129: 2 | C129: 798047 | D129: 726799 | E129: 1.09802985419628 | F129: 0.18
A130: 13 | B130: 9 | C130: 7486003 | D130: 6817668 | E130: 1.09802985419648 | F130: 0.00
F131: exact, within floating point precision limit
B133: Numerator: | D133: 29.5 | E133: =D133 -> 29.5
B134: Denominator: | D134: Synodic | E134: =Synodic -> 29.530588805437
B135: Ratio: | D135: =D133&":"&D134 -> 29.5:Synodic | E135: =E133/E134 -> 0.998964165406977
A137: Convergent | B137: alpha | C137: p | D137: q | E137: p/q | F137: ppt Error
A138: 2 | B138: =ContinuedFraction(E135,A138,A147) -> 964 | C138: 964 | D138: 965 | E138: 0.998963730569948 | F138: 435287.91
A139: =A138+1 -> 3 | B139: 2 | C139: 1929 | D139: 1931 | E139: 0.998964267219058 | F139: 101917.65
A140: =A139+1 -> 4 | B140: 2 | C140: 4822 | D140: 4827 | E140: 0.998964159933706 | F140: 5478.95
A141: 5 | B141: 7 | C141: 35683 | D141: 35720 | E141: 0.998964165733483 | F141: 326.84
A142: 6 | B142: 2 | C142: 76188 | D142: 76267 | E142: 0.998964165366410 | F142: 40.61
A143: 7 | B143: 3 | C143: 264247 | D143: 264521 | E143: 0.998964165415978 | F143: 9.01
A144: 8 | B144: 1 | C144: 340435 | D144: 340788 | E144: 0.998964165404885 | F144: 2.09
A145: 9 | B145: 3 | C145: 1285552 | D145: 1286885 | E145: 0.998964165407165 | F145: 0.19
A146: 10 | B146: 2 | C146: 2911539 | D146: 2914558 | E146: 0.998964165406899 | F146: 0.08
A147: 11 | B147: 1 | C147: 4197091 | D147: 4201443 | E147: 0.998964165406980 | F147: 0.00
F148: exact, within floating point precision limit
B150: Numerator: | D150: 29.5 | E150: =D150 -> 29.5
B151: Denominator: | D151: Sidereal | E151: =Sidereal -> 27.321661506147
B152: Ratio: | D152: =D150&":"&D151 -> 29.5:Sidereal | E152: =E150/E151 -> 1.07972935662654
A154: Convergent | B154: alpha | C154: p | D154: q | E154: p/q | F154: ppt Error
A155: 3 | B155: =ContinuedFraction(E152,A155,A166) -> 1 | C155: 27 | D155: 25 | E155: 1.08000000000000 | F155: 250658530.12
A156: =A155+1 -> 4 | B156: 5 | C156: 149 | D156: 138 | E156: 1.07971014492754 | F156: 17793069.05
A157: =A156+1 -> 5 | B157: 2 | C157: 325 | D157: 301 | E157: 1.07973421926910 | F157: 4503575.40
A158: 6 | B158: 1 | C158: 474 | D158: 439 | E158: 1.07972665148064 | F158: 2505392.56
A159: 7 | B159: 1 | C159: 799 | D159: 740 | E159: 1.07972972972973 | F159: 345552.51
A160: 8 | B160: 4 | C160: 3670 | D160: 3399 | E160: 1.07972933215652 | F160: 22663.11
A161: 9 | B161: 3 | C161: 11809 | D161: 10937 | E161: 1.07972935905641 | F161: 2250.45
A162: 10 | B162: 3 | C162: 39097 | D162: 36210 | E162: 1.07972935653134 | F162: 88.16
A163: 11 | B163: 7 | C163: 285488 | D163: 264407 | E163: 1.07972935663579 | F163: 8.57
A164: 12 | B164: 1 | C164: 324585 | D164: 300617 | E164: 1.07972935662321 | F164: 3.08
A165: 13 | B165: 2 | C165: 934658 | D165: 865641 | E165: 1.07972935662705 | F165: 0.48
A166: 14 | B166: 2 | C166: 2193901 | D166: 2031899 | E166: 1.07972935662649 | F166: 0.05
B169: Numerator: | D169: 29 | E169: =D169 -> 29
B170: Denominator: | D170: Synodic | E170: =Synodic -> 29.530588805437
B171: Ratio: | D171: =D169&":"&D170 -> 29:Synodic | E171: =E169/E170 -> 0.982032569383130
A173: Convergent | B173: alpha | C173: p | D173: q | E173: p/q | F173: ppt Error
A174: 2 | B174: =ContinuedFraction(E171,A174,A182) -> 54 | C174: 54 | D174: 55 | E174: 0.981818181818182 | F174: 218310035.36
A175: =A174+1 -> 3 | B175: 1 | C175: 55 | D175: 56 | E175: 0.982142857142857 | F175: 112305602.85
A176: =A175+1 -> 4 | B176: 1 | C176: 109 | D176: 111 | E176: 0.981981981981982 | F176: 51512956.62
A177: 5 | B177: 1 | C177: 164 | D177: 167 | E177: 0.982035928143713 | F177: 3420213.02
A178: 6 | B178: 10 | C178: 1749 | D178: 1781 | E178: 0.982032565974172 | F178: 3471.33
A179: 7 | B179: 92 | C179: 161072 | D179: 164019 | E179: 0.982032569397448 | F179: 14.58
A180: 8 | B180: 2 | C180: 323893 | D180: 329819 | E180: 0.982032569378962 | F180: 4.24
A181: 9 | B181: 1 | C181: 484965 | D181: 493838 | E181: 0.9820325694 | F181: 2.01
A182: 10 | B182: 1 | C182: 808858 | D182: 823657 | E182: 0.982032569382643 | F182: 0.49
B185: Numerator: | D185: 29 | E185: =D185 -> 29
B186: Denominator: | D186: Sidereal | E186: =Sidereal -> 27.321661506147
B187: Ratio: | D187: =D185&":"&D186 -> 29:Sidereal | E187: =E185/E186 -> 1.06142885905660
A189: Convergent | B189: alpha | C189: p | D189: q | E189: p/q | F189: ppt Error
A190: 2 | B190: =ContinuedFraction(E187,A190,A200) -> 3 | C190: 52 | D190: 49 | E190: 1.06122448979592 | F190: 192541647
A191: =A190+1 -> 3 | B191: 1 | C191: 69 | D191: 65 | E191: 1.06153846153846 | F191: 103259376.2
A192: =A191+1 -> 4 | B192: 1 | C192: 121 | D192: 114 | E192: 1.06140350877193 | F192: 23883168.85
A193: 5 | B193: 2 | C193: 311 | D193: 293 | E193: 1.06143344709898 | F193: 4322515.203
A194: 6 | B194: 2 | C194: 743 | D194: 700 | E194: 1.06142857142857 | F194: 270981.9149
A195: 7 | B195: 6 | C195: 4769 | D195: 4493 | E195: 1.06142888938349 | F195: 28571.75868
A196: 8 | B196: 1 | C196: 5512 | D196: 5193 | E196: 1.06142884652417 | F196: 11807.13033
A197: 9 | B197: 2 | C197: 15793 | D197: 14879 | E197: 1.06142885946636 | F197: 386.0510984
A198: 10 | B198: 10 | C198: 163442 | D198: 153983 | E198: 1.06142885902989 | F198: 25.157886
A199: 11 | B199: 1 | C199: 179235 | D199: 168862 | E199: 1.06142885906835 | F199: 11.07515155
A200: 12 | B200: 2 | C200: 521912 | D200: 491707 | E200: 1.06142885905631 | F200: 0.2715338807
B203: Numerator: | D203: 360000 | E203: =D203 -> 360000
B204: Denominator: | D204: 354833 | E204: =D204 -> 354833
B205: Ratio: | D205: =D203&":"&D204 -> 360000:354833 | E205: =E203/E204 -> 1.01456177976682
A207: Convergent | B207: alpha | C207: p | D207: q | E207: p/q | F207: ppt Error | G207: Fraction Error
A208: 2 | B208: =ContinuedFraction(E205,A208,A218) -> 1 | C208: 70 | D208: 69 | E208: 1.01449275362319 | F208: 68035426.73 | G208: =FractionError(D$203,D$204,C208,D208) -> 1690/24483477
A209: =A208+1 -> 3 | B209: 2 | C209: 209 | D209: 206 | E209: 1.01456310679612 | F209: 1307982.74 | G209: =FractionError(D$203,D$204,C209,D209) -> –97/73095598
A210: =A209+1 -> 4 | B210: 17 | C210: 3623 | D210: 3571 | E210: 1.01456174740969 | F210: 31892.72 | G210: 41/1267108643
A211: 5 | B211: 2 | C211: 7455 | D211: 7348 | E211: 1.01456178551987 | F211: 5670.48 | G211: –15/2607312884
A212: 6 | B212: 2 | C212: 18533 | D212: 18267 | E212: 1.01456177806974 | F212: 1672.72 | G212: 11/6481734411
A213: 7 | B213: 1 | C213: 25988 | D213: 25615 | E213: 1.01456178 | F213: 433.77 | G213: –4/9089047295
A214: 8 | B214: 2 | C214: 70509 | D214: 69497 | E214: 1.01456177964516 | F214: 119.91 | G214: 3/24659829001
A215: 9 | B215: 1 | C215: 96497 | D215: 95112 | E215: 1.01456177979645 | F215: 29.21 | G215: –1/33748876296
A216: 10 | B216: 2 | C216: 263503 | D216: 259721 | E216: 1.01456177975597 | F216: 10.70 | G216: 1/92157581593
A217: 11 | B217: 1 | C217: 360000 | D217: 354833 | E217: 1.01456177976682 | F217: 0.00 | G217: 0 | H217: Most accurate solution possible.
A218: 12 | G218: =FractionError(D$203,D$204,C218,D218) ->  | H218: Although it appears to be exact, the algorithm is
G219: =FractionError(D$203,D$204,C219,D219) ->  | H219: limited to double-precision floating point.
G220: =FractionError(D$203,D$204,C220,D220) ->  | H220: (Nevertheless, in this case it is exact.)
B222: Numerator: | D222: 11 | E222: =D222 -> 11
B223: Denominator: | D223: 117 | E223: =D223 -> 117
B224: Ratio: | D224: =D222&":"&D223 -> 11:117 | E224: =E222/E223 -> 0.094017094017094
A226: Convergent | B226: alpha | C226: p | D226: q | E226: p/q | F226: ppt Error | G226: Fraction Error
A227: 2 | B227: =ContinuedFraction(E224,A227,A235) -> 1 | C227: 1 | D227: 11 | E227: 0.090909090909091 | F227: 33057851239.67 | G227: =FractionError(D$222,D$223,C227,D227) -> 4/1287
A228: =A227+1 -> 3 | B228: 1 | C228: 2 | D228: 21 | E228: 0.095238095238095 | F228: 12987012987.01 | G228: –1/819
A229: =A228+1 -> 4 | B229: 1 | C229: 3 | D229: 32 | E229: 0.093750000000000 | F229: 2840909090.91 | G229: 1/3744
A230: 5 | B230: 3 | C230: 11 | D230: 117 | E230: 0.094017094017094 | F230: 0.00 | G230: 0 | H230: Most accurate solution possible.
A231: 6 | H231: Although it appears to be exact, the algorithm is
A232: 7 | H232: limited to double-precision floating point.
A233: 8
A234: 9
A235: 10
B238: Numerator: | D238: 36 | E238: =D238 -> 36
B239: Denominator: | D239: 117 | E239: =D239 -> 117
B240: Ratio: | D240: =D238&":"&D239 -> 36:117 | E240: =E238/E239 -> 0.307692307692308
A242: Convergent | B242: alpha | C242: p | D242: q | E242: p/q | F242: ppt Error | G242: Fraction Error
A243: 1 | B243: =ContinuedFraction(E240,A243,A251) -> 3 | C243: 1 | D243: 3 | E243: 0.333333333333333 | F243: 83333333333.33 | G243: =FractionError(D$238,D$239,C243,D243) -> –1/39
A244: =A243+1 -> 2 | B244: 4 | C244: 4 | D244: 13 | E244: 0.307692307692308 | F244: 0.00 | G244: =FractionError(D$238,D$239,C244,D244) -> 0 | H244: Most accurate solution possible.
... 47 more rows

Sheet Divisors
A1: Factorization of Integers
A3: It may be helpful to find the integer divisors of the number of years per leap cycle, number of days per cycle, etc.
A5: For that purpose, this spreadsheet include a macro Divisors( ) function.
A7: Syntax and how to use the Divisors macro function:
A9: =Divisors( TheNumber {, FlagPrimes } )
A11: The values for the optional FlagPrimes parameter are:
A12: 1 | B12: Return all Divisors, with flagged primes (default).
A13: 0 | B13: Return all Divisors without flagging primes
A14: -1 | B14: Return primes divisors only (factorize) and flag all as primes.
A15: -2 | B15: (or any value <-1) Return prime divisors only (factorize) but don't flag as primes.
A17: See examples below:
A19: Number | B19: FlagPrimes | C19: Syntax | D19: Result
A20: 3150 | B20: 0 | C20: ="=Divisors("&A20&","&B20&")" -> =Divisors(3150,0) | D20: =divisors(A20,B20) -> 2, 3, 5, 6, 7, 9, 10, 14, 15, 18, 21, 25, 30, 35, 42, 45, 50, 63, 70, 75, 90, 105, 126, 150, 175, 210, 225, 315, 350, 450, 525, 630, 1050, 1575, 3150
A21: 3150 | B21: 1 | C21: ="=Divisors("&A21&","&B21&")" -> =Divisors(3150,1) | D21: =divisors(A21,B21) -> 2', 3', 5', 6, 7', 9, 10, 14, 15, 18, 21, 25, 30, 35, 42, 45, 50, 63, 70, 75, 90, 105, 126, 150, 175, 210, 225, 315, 350, 450, 525, 630, 1050, 1575, 3150
A22: 3150 | B22: -1 | C22: ="=Divisors("&A22&","&B22&")" -> =Divisors(3150,-1) | D22: =divisors(A22,B22) -> 2', 3', 5', 7', 3150
A23: 3150 | B23: -2 | C23: ="=Divisors("&A23&","&B23&")" -> =Divisors(3150,-2) | D23: =divisors(A23,B23) -> 2, 3, 5, 7, 3150
A24: 293 | B24: 1 | C24: ="=Divisors("&A24&","&B24&")" -> =Divisors(293,1) | D24: =divisors(A24,B24) -> 293'
